[Event "*** Titled Tuesday 3|2 Blitz (Early)"]
[Site "Chess.com"]
[Date "2016.12.06"]
[Round "6"]
[White "Hieronymus00"]
[Black "Enzy63"]
[Result "1/2-1/2"]
[WhiteElo "2106"]
[BlackElo "2021"]
[TimeControl "180+2"]
[EndTime "12:19:55 PST"]
[Termination "Game drawn by repetition"]

1. e4 {[%clk 0:03:02]} 1... e5 {[%clk 0:02:57.2]} 2. Nf3 {[%clk 0:03:03.5]} 2...
Nc6 {[%clk 0:02:58.3]} 3. Bb5 {[%clk 0:03:04.5]} 3... a6 {[%clk 0:02:58.7]} 4.
Ba4 {[%clk 0:03:05.4]} 4... Nf6 {[%clk 0:02:59.7]} 5. O-O {[%clk 0:03:06.4]}
5... Be7 {[%clk 0:03:00.8]} 6. Re1 {[%clk 0:03:07.3]} 6... b5 {[%clk 0:03:01.8]}
7. Bb3 {[%clk 0:03:08.6]} 7... d6 {[%clk 0:03:03.3]} 8. c3 {[%clk 0:03:09.6]}
8... O-O {[%clk 0:03:04]} 9. h3 {[%clk 0:03:11]} 9... Na5 {[%clk 0:03:04.6]} 10.
Bc2 {[%clk 0:03:12.4]} 10... c5 {[%clk 0:03:05.9]} 11. d4 {[%clk 0:03:14]} 11...
Nd7 {[%clk 0:03:07]} 12. Nbd2 {[%clk 0:03:14.5]} 12... exd4 {[%clk 0:03:04]} 13.
cxd4 {[%clk 0:03:15.4]} 13... Nc6 {[%clk 0:03:05.4]} 14. d5 {[%clk 0:02:53.1]}
14... Nce5 {[%clk 0:03:04.9]} 15. Nf1 {[%clk 0:02:50]} 15... Nxf3+ {[%clk
0:02:48]} 16. Qxf3 {[%clk 0:02:47.8]} 16... Ne5 {[%clk 0:02:48.8]} 17. Qe2
{[%clk 0:02:46.2]} 17... Bf6 {[%clk 0:02:14.3]} 18. Ng3 {[%clk 0:02:38]} 18...
g6 {[%clk 0:01:59.9]} 19. a4 {[%clk 0:02:23.4]} 19... Bd7 {[%clk 0:01:56.5]} 20.
Bh6 {[%clk 0:02:02.6]} 20... Re8 {[%clk 0:01:56.6]} 21. axb5 {[%clk 0:01:52.1]}
21... Bxb5 {[%clk 0:01:55.1]} 22. Qd1 {[%clk 0:01:47.7]} 22... Nc4 {[%clk
0:01:17.7]} 23. b3 {[%clk 0:01:14.6]} 23... Nb2 {[%clk 0:00:32.2]} 24. Qf3
{[%clk 0:01:05.4]} 24... c4 {[%clk 0:00:27]} 25. Rab1 {[%clk 0:00:46.8]} 25...
Nd3 {[%clk 0:00:24]} 26. Bxd3 {[%clk 0:00:39.3]} 26... cxd3 {[%clk 0:00:25.9]}
27. Nf1 {[%clk 0:00:32]} 27... Bg5 {[%clk 0:00:23.2]} 28. Bxg5 {[%clk 0:00:28]}
28... Qxg5 {[%clk 0:00:25.1]} 29. Ne3 {[%clk 0:00:26.6]} 29... h5 {[%clk
0:00:23.7]} 30. Red1 {[%clk 0:00:16.4]} 30... Rac8 {[%clk 0:00:22.7]} 31. Rbc1
{[%clk 0:00:15.4]} 31... Rxc1 {[%clk 0:00:19.5]} 32. Rxc1 {[%clk 0:00:16.4]}
32... Qe5 {[%clk 0:00:20.2]} 33. Rc7 {[%clk 0:00:13.5]} 33... Re7 {[%clk
0:00:19]} 34. Rxe7 {[%clk 0:00:11.7]} 34... Qxe7 {[%clk 0:00:19.4]} 35. Qf4
{[%clk 0:00:11.4]} 35... Qc7 {[%clk 0:00:16.5]} 36. Kh2 {[%clk 0:00:09.9]} 36...
Qc1 {[%clk 0:00:14.2]} 37. Qxd6 {[%clk 0:00:07.3]} 37... d2 {[%clk 0:00:13.8]}
38. Qd8+ {[%clk 0:00:03.8]} 38... Kg7 {[%clk 0:00:14.7]} 39. Qe7 {[%clk
0:00:03.7]} 39... d1=Q {[%clk 0:00:14]} 40. Nxd1 {[%clk 0:00:04.6]} 40... Qxd1
{[%clk 0:00:14.4]} 41. Qe5+ {[%clk 0:00:05.7]} 41... Kh7 {[%clk 0:00:14.5]} 42.
d6 {[%clk 0:00:06]} 42... Qd3 {[%clk 0:00:11.2]} 43. Qe7 {[%clk 0:00:06]} 43...
Kg7 {[%clk 0:00:10.7]} 44. e5 {[%clk 0:00:06.4]} 44... Qd4 {[%clk 0:00:10.8]}
45. Kg1 {[%clk 0:00:04.6]} 45... Qd1+ {[%clk 0:00:11.3]} 46. Kh2 {[%clk
0:00:05.9]} 46... Qd2 {[%clk 0:00:11.9]} 47. Kg1 {[%clk 0:00:03.5]} 47... Qd1+
{[%clk 0:00:11.4]} 48. Kh2 {[%clk 0:00:04.6]} 48... Qd2 {[%clk 0:00:12.9]} 49.
Kg1 {[%clk 0:00:05.8]} 49... Qd1+ {[%clk 0:00:14.2]} 50. Kh2 {[%clk 0:00:07]}
50... Qd2 {[%clk 0:00:15.5]} 51. Kg1 {[%clk 0:00:08.5]} 51... Qd1+ {[%clk
0:00:16.9]} 52. Kh2 {[%clk 0:00:10.1]} 1/2-1/2

[Event "*** Titled Tuesday 3|2 Blitz (Early)"]
[Site "Chess.com"]
[Date "2016.12.06"]
[Round "6"]
[White "biostatistician"]
[Black "ZhuChenChess"]
[Result "1-0"]
[WhiteElo "2472"]
[BlackElo "2381"]
[TimeControl "180+2"]
[EndTime "12:20:04 PST"]
[Termination "biostatistician won on time"]

1. d4 {[%clk 0:03:02]} 1... Nf6 {[%clk 0:03:00.3]} 2. Nf3 {[%clk 0:03:03.9]}
2... e6 {[%clk 0:03:00.8]} 3. c4 {[%clk 0:03:05.3]} 3... d5 {[%clk 0:03:01.5]}
4. Bg5 {[%clk 0:03:04.7]} 4... Bb4+ {[%clk 0:03:00]} 5. Nc3 {[%clk 0:03:05.1]}
5... h6 {[%clk 0:02:59.8]} 6. Bxf6 {[%clk 0:03:04.9]} 6... Qxf6 {[%clk
0:03:00.5]} 7. e3 {[%clk 0:03:06.5]} 7... c5 {[%clk 0:02:52.7]} 8. cxd5 {[%clk
0:03:04.5]} 8... exd5 {[%clk 0:02:51.7]} 9. Bb5+ {[%clk 0:03:05.5]} 9... Bd7
{[%clk 0:02:47.5]} 10. O-O {[%clk 0:03:06.8]} 10... Bxc3 {[%clk 0:02:46.3]} 11.
Bxd7+ {[%clk 0:03:06.7]} 11... Nxd7 {[%clk 0:02:46.5]} 12. bxc3 {[%clk
0:03:08.6]} 12... O-O {[%clk 0:02:46.1]} 13. Qa4 {[%clk 0:03:07.9]} 13... Rfd8
{[%clk 0:02:24.7]} 14. Rab1 {[%clk 0:03:07.1]} 14... b6 {[%clk 0:02:13.1]} 15.
Qa6 {[%clk 0:03:05.6]} 15... Qc6 {[%clk 0:01:57.9]} 16. Rb3 {[%clk 0:02:48.3]}
16... Rac8 {[%clk 0:01:49.3]} 17. h3 {[%clk 0:02:44.9]} 17... Rc7 {[%clk
0:01:27.1]} 18. a4 {[%clk 0:02:32.8]} 18... c4 {[%clk 0:01:22.5]} 19. Rb2 {[%clk
0:02:29.1]} 19... Qg6 {[%clk 0:01:01.8]} 20. a5 {[%clk 0:02:21.4]} 20... Qd3
{[%clk 0:00:40.7]} 21. Rc1 {[%clk 0:02:17.5]} 21... Rb8 {[%clk 0:00:25.9]} 22.
axb6 {[%clk 0:02:06.4]} 22... Rxb6 {[%clk 0:00:22.8]} 23. Rxb6 {[%clk
0:02:06.7]} 23... Nxb6 {[%clk 0:00:23.8]} 24. Qb5 {[%clk 0:02:01.9]} 24... Re7
{[%clk 0:00:24.3]} 25. Ne5 {[%clk 0:01:37.9]} 25... Qe4 {[%clk 0:00:21.1]} 26.
Qc5 {[%clk 0:01:33]} 26... Re6 {[%clk 0:00:16.7]} 27. Qc7 {[%clk 0:01:33.2]}
27... Rf6 {[%clk 0:00:17.5]} 28. Qxa7 {[%clk 0:01:31]} 28... Kh7 {[%clk
0:00:16.2]} 29. Rf1 {[%clk 0:01:19.9]} 29... Nc8 {[%clk 0:00:16.7]} 30. Qb7
{[%clk 0:01:16.8]} 30... Nd6 {[%clk 0:00:17.7]} 31. Qe7 {[%clk 0:01:13.9]} 31...
Qc2 {[%clk 0:00:17.8]} 32. Nd7 {[%clk 0:01:10.6]} 32... Ne4 {[%clk 0:00:12.3]}
33. Nxf6+ {[%clk 0:01:07.4]} 33... Nxf6 {[%clk 0:00:13.2]} 34. Qa3 {[%clk
0:01:06.3]} 34... Ne4 {[%clk 0:00:13.1]} 35. Qc1 {[%clk 0:00:59.4]} 35... Qd3
{[%clk 0:00:14]} 36. Qb1 {[%clk 0:00:44.8]} 36... Qxc3 {[%clk 0:00:14.3]} 37. f3
{[%clk 0:00:44.5]} 37... Qxe3+ {[%clk 0:00:15.1]} 38. Kh1 {[%clk 0:00:44.8]}
38... Qxd4 {[%clk 0:00:14.2]} 39. fxe4 {[%clk 0:00:45.9]} 39... dxe4 {[%clk
0:00:15.3]} 40. Rxf7 {[%clk 0:00:42.5]} 40... c3 {[%clk 0:00:14.9]} 41. Rf1
{[%clk 0:00:34.4]} 41... Qd3 {[%clk 0:00:14.4]} 42. Re1 {[%clk 0:00:31]} 42...
c2 {[%clk 0:00:13.9]} 43. Qc1 {[%clk 0:00:32.1]} 43... Kh8 {[%clk 0:00:12.4]}
44. Kg1 {[%clk 0:00:28.4]} 44... Qd4+ {[%clk 0:00:13.3]} 45. Kf1 {[%clk
0:00:29.6]} 45... Qd3+ {[%clk 0:00:14.3]} 46. Kf2 {[%clk 0:00:30]} 46... Qd4+
{[%clk 0:00:14.8]} 47. Qe3 {[%clk 0:00:27.9]} 47... Qc4 {[%clk 0:00:15.8]} 48.
Rc1 {[%clk 0:00:26.3]} 48... Qc6 {[%clk 0:00:13.7]} 49. Qd2 {[%clk 0:00:25.1]}
49... Qc5+ {[%clk 0:00:14]} 50. Kf1 {[%clk 0:00:25.8]} 50... e3 {[%clk
0:00:08.8]} 51. Qxc2 {[%clk 0:00:26.3]} 51... e2+ {[%clk 0:00:09.7]} 52. Kxe2
{[%clk 0:00:27.3]} 52... Qe5+ {[%clk 0:00:10.1]} 53. Kf2 {[%clk 0:00:28.3]}
53... Qf4+ {[%clk 0:00:08.9]} 54. Kg1 {[%clk 0:00:29.6]} 54... Qe3+ {[%clk
0:00:10.2]} 55. Kh1 {[%clk 0:00:31]} 1-0

[Event "*** Titled Tuesday 3|2 Blitz (Early)"]
[Site "Chess.com"]
[Date "2016.12.06"]
[Round "6"]
[White "AmazingAtlas"]
[Black "macko06"]
[Result "1-0"]
[WhiteElo "2301"]
[BlackElo "2255"]
[TimeControl "180+2"]
[EndTime "12:20:41 PST"]
[Termination "AmazingAtlas won by checkmate"]

1. e4 {[%clk 0:03:02]} 1... e6 {[%clk 0:02:59.5]} 2. d4 {[%clk 0:03:01.5]} 2...
d5 {[%clk 0:02:58.6]} 3. Nc3 {[%clk 0:02:58]} 3... Nf6 {[%clk 0:02:58]} 4. Bg5
{[%clk 0:02:56.4]} 4... Be7 {[%clk 0:02:59]} 5. e5 {[%clk 0:02:54.4]} 5... Nfd7
{[%clk 0:03:00.6]} 6. h4 {[%clk 0:02:53.4]} 6... h6 {[%clk 0:03:01.3]} 7. Bxe7
{[%clk 0:02:46.1]} 7... Qxe7 {[%clk 0:03:03.2]} 8. f4 {[%clk 0:02:46.1]} 8... a6
{[%clk 0:03:02.8]} 9. Qg4 {[%clk 0:02:39.6]} 9... O-O {[%clk 0:02:56.5]} 10. f5
{[%clk 0:02:19]} 10... exf5 {[%clk 0:02:49.1]} 11. Nxd5 {[%clk 0:02:17]} 11...
fxg4 {[%clk 0:02:45.4]} 12. Nxe7+ {[%clk 0:02:17.6]} 12... Kh7 {[%clk 0:02:47]}
13. Bd3+ {[%clk 0:02:13.7]} 13... Kh8 {[%clk 0:02:45.6]} 14. Ne2 {[%clk
0:01:47.6]} 14... c5 {[%clk 0:02:38.8]} 15. c3 {[%clk 0:01:48.5]} 15... Nc6
{[%clk 0:02:37.1]} 16. Nxc6 {[%clk 0:01:36.3]} 16... bxc6 {[%clk 0:02:39]} 17.
O-O {[%clk 0:01:35.7]} 17... cxd4 {[%clk 0:02:22.1]} 18. cxd4 {[%clk 0:01:34.2]}
18... c5 {[%clk 0:02:22.5]} 19. e6 {[%clk 0:01:26]} 19... Nf6 {[%clk 0:02:21.9]}
20. dxc5 {[%clk 0:01:18.1]} 20... Bxe6 {[%clk 0:02:19.5]} 21. Nf4 {[%clk
0:01:15.3]} 21... Bd7 {[%clk 0:02:13.3]} 22. b4 {[%clk 0:01:14]} 22... Rfb8
{[%clk 0:02:06.2]} 23. Rab1 {[%clk 0:01:05.9]} 23... Kg8 {[%clk 0:01:54.5]} 24.
Bc4 {[%clk 0:00:55]} 24... Kf8 {[%clk 0:01:54.4]} 25. Nd5 {[%clk 0:00:54.3]}
25... Be6 {[%clk 0:01:40]} 26. Nxf6 {[%clk 0:00:49.9]} 26... Bxc4 {[%clk
0:01:39.3]} 27. Nd7+ {[%clk 0:00:51.3]} 27... Ke7 {[%clk 0:01:40.5]} 28. Nxb8
{[%clk 0:00:51.5]} 28... Rxb8 {[%clk 0:01:28.3]} 29. Rfe1+ {[%clk 0:00:42.7]}
29... Kd7 {[%clk 0:01:29.6]} 30. a4 {[%clk 0:00:39.1]} 30... Kc6 {[%clk
0:01:14.9]} 31. Red1 {[%clk 0:00:29.2]} 31... Rb7 {[%clk 0:01:02.2]} 32. Rd4
{[%clk 0:00:21.5]} 32... Be2 {[%clk 0:00:45.1]} 33. Kf2 {[%clk 0:00:20.6]} 33...
Re7 {[%clk 0:00:32.8]} 34. Re1 {[%clk 0:00:17.3]} 34... g3+ {[%clk 0:00:31.3]}
35. Kxg3 {[%clk 0:00:18.7]} 35... Re6 {[%clk 0:00:23.3]} 36. Kf2 {[%clk
0:00:19.5]} 36... Bh5 {[%clk 0:00:18.2]} 37. Rxe6+ {[%clk 0:00:21.4]} 37... fxe6
{[%clk 0:00:19.8]} 38. Rd6+ {[%clk 0:00:23.3]} 38... Kb7 {[%clk 0:00:21.3]} 39.
Rb6+ {[%clk 0:00:24.3]} 39... Kc7 {[%clk 0:00:20.1]} 40. Rxe6 {[%clk 0:00:24.3]}
40... Kd7 {[%clk 0:00:22]} 41. Rxa6 {[%clk 0:00:25.2]} 41... Bd1 {[%clk
0:00:22.4]} 42. Ke3 {[%clk 0:00:25.6]} 42... Bb3 {[%clk 0:00:22.2]} 43. g3
{[%clk 0:00:26.8]} 43... Ke7 {[%clk 0:00:23.1]} 44. Kd4 {[%clk 0:00:26]} 44...
Bd1 {[%clk 0:00:23.5]} 45. Ke3 {[%clk 0:00:26.6]} 45... g5 {[%clk 0:00:24.1]}
46. hxg5 {[%clk 0:00:27.3]} 46... hxg5 {[%clk 0:00:26]} 47. Kd4 {[%clk
0:00:25.7]} 47... Kd7 {[%clk 0:00:27.4]} 48. b5 {[%clk 0:00:26.7]} 48... Kc7
{[%clk 0:00:28.5]} 49. Ke5 {[%clk 0:00:28]} 49... Kb7 {[%clk 0:00:28.9]} 50. Kf5
{[%clk 0:00:29.1]} 50... g4 {[%clk 0:00:30]} 51. Ke5 {[%clk 0:00:29.8]} 51...
Bf3 {[%clk 0:00:30.8]} 52. c6+ {[%clk 0:00:30.2]} 52... Kc7 {[%clk 0:00:31.3]}
53. Ra7+ {[%clk 0:00:30.4]} 53... Kb8 {[%clk 0:00:32.8]} 54. Rb7+ {[%clk
0:00:31.4]} 54... Ka8 {[%clk 0:00:34.4]} 55. Rg7 {[%clk 0:00:32.5]} 55... Kb8
{[%clk 0:00:34.6]} 56. Kf4 {[%clk 0:00:33.1]} 56... Bd1 {[%clk 0:00:34.4]} 57.
a5 {[%clk 0:00:31.8]} 57... Ba4 {[%clk 0:00:35.1]} 58. Kxg4 {[%clk 0:00:31.9]}
58... Kc8 {[%clk 0:00:33.3]} 59. b6 {[%clk 0:00:28.9]} 59... Bd1+ {[%clk
0:00:27.4]} 60. Kf4 {[%clk 0:00:29]} 60... Kd8 {[%clk 0:00:26.9]} 61. a6 {[%clk
0:00:29.1]} 61... Be2 {[%clk 0:00:27.2]} 62. a7 {[%clk 0:00:29.9]} 62... Ba6
{[%clk 0:00:27.4]} 63. Rd7+ {[%clk 0:00:29.6]} 63... Kc8 {[%clk 0:00:26.4]} 64.
a8=Q# {[%clk 0:00:31.5]} 1-0

[Event "*** Titled Tuesday 3|2 Blitz (Early)"]
[Site "Chess.com"]
[Date "2016.12.06"]
[Round "6"]
[White "jup1978"]
[Black "FrankieJay"]
[Result "0-1"]
[WhiteElo "2237"]
[BlackElo "2212"]
[TimeControl "180+2"]
[EndTime "12:20:54 PST"]
[Termination "FrankieJay won by resignation"]

1. d4 {[%clk 0:03:01.8]} 1... Nf6 {[%clk 0:03:00.9]} 2. Nf3 {[%clk 0:02:53]}
2... g6 {[%clk 0:03:00.6]} 3. g3 {[%clk 0:02:53.4]} 3... Bg7 {[%clk 0:03:02]} 4.
Bg2 {[%clk 0:02:55.3]} 4... O-O {[%clk 0:03:03.6]} 5. O-O {[%clk 0:02:57.2]}
5... d5 {[%clk 0:03:05]} 6. Nc3 {[%clk 0:02:58.8]} 6... Bg4 {[%clk 0:02:56.1]}
7. Ne5 {[%clk 0:02:58.2]} 7... Bf5 {[%clk 0:02:49.7]} 8. Bg5 {[%clk 0:02:57.7]}
8... c6 {[%clk 0:02:50.2]} 9. Bxf6 {[%clk 0:02:56.8]} 9... Bxf6 {[%clk
0:02:46.1]} 10. e4 {[%clk 0:02:56.9]} 10... dxe4 {[%clk 0:02:47]} 11. Nxe4
{[%clk 0:02:58.7]} 11... Bg7 {[%clk 0:02:48.4]} 12. Re1 {[%clk 0:02:53.7]} 12...
Nd7 {[%clk 0:02:48.2]} 13. Nxd7 {[%clk 0:02:51.5]} 13... Qxd7 {[%clk 0:02:47.7]}
14. Nc5 {[%clk 0:02:50]} 14... Qxd4 {[%clk 0:02:41.8]} 15. Qxd4 {[%clk
0:02:49.9]} 15... Bxd4 {[%clk 0:02:43.7]} 16. Nd3 {[%clk 0:02:50.8]} 16... Rfe8
{[%clk 0:02:24.6]} 17. Be4 {[%clk 0:02:49.5]} 17... Bxe4 {[%clk 0:02:12.7]} 18.
Rxe4 {[%clk 0:02:51.4]} 18... Rad8 {[%clk 0:02:13.3]} 19. Rae1 {[%clk
0:02:44.9]} 19... e6 {[%clk 0:02:14.4]} 20. Kf1 {[%clk 0:02:35.2]} 20... Rd7
{[%clk 0:01:50]} 21. b3 {[%clk 0:02:25.3]} 21... Red8 {[%clk 0:01:50.2]} 22. Kg2
{[%clk 0:02:24]} 22... b6 {[%clk 0:01:38.2]} 23. R1e2 {[%clk 0:02:24.5]} 23...
c5 {[%clk 0:01:38.9]} 24. h4 {[%clk 0:02:25.7]} 24... h5 {[%clk 0:01:37.9]} 25.
f4 {[%clk 0:02:20.3]} 25... Bf6 {[%clk 0:01:36.6]} 26. Kf3 {[%clk 0:02:15.9]}
26... Rd4 {[%clk 0:01:36]} 27. Rxd4 {[%clk 0:02:15.2]} 27... Rxd4 {[%clk
0:01:36.3]} 28. Re4 {[%clk 0:02:10]} 28... Kf8 {[%clk 0:01:33.7]} 29. Rxd4
{[%clk 0:02:09.2]} 29... Bxd4 {[%clk 0:01:35.6]} 30. Ke4 {[%clk 0:02:10.7]}
30... Ke7 {[%clk 0:01:34.8]} 31. b4 {[%clk 0:02:08.4]} 31... f5+ {[%clk
0:01:34.3]} 32. Kf3 {[%clk 0:02:03.8]} 32... Kd6 {[%clk 0:01:27.4]} 33. bxc5+
{[%clk 0:01:59.3]} 33... bxc5 {[%clk 0:01:28.9]} 34. c4 {[%clk 0:02:00.1]} 34...
e5 {[%clk 0:01:27.8]} 35. fxe5+ {[%clk 0:02:00.9]} 35... Bxe5 {[%clk 0:01:28.7]}
36. Nc1 {[%clk 0:01:58.4]} 36... Bd4 {[%clk 0:01:29.4]} 37. Nb3 {[%clk 0:01:59]}
37... Ke5 {[%clk 0:01:20.5]} 38. Na5 {[%clk 0:01:58.3]} 38... Kd6 {[%clk
0:01:21.4]} 39. Nb3 {[%clk 0:01:59]} 39... Bc3 {[%clk 0:01:22]} 40. Kf4 {[%clk
0:01:59.5]} 40... Bf6 {[%clk 0:01:19.7]} 41. Na5 {[%clk 0:01:56.7]} 41... Be5+
{[%clk 0:01:17.9]} 42. Kf3 {[%clk 0:01:57.1]} 42... Kc7 {[%clk 0:01:17.9]} 43.
Nb3 {[%clk 0:01:56.7]} 43... Kd6 {[%clk 0:01:16.1]} 44. Na5 {[%clk 0:01:56.5]}
44... Bg7 {[%clk 0:01:15.5]} 45. Nb7+ {[%clk 0:01:42.7]} 45... Kc6 {[%clk
0:01:16]} 46. Nd8+ {[%clk 0:01:43.6]} 46... Kd7 {[%clk 0:01:16.6]} 47. Nb7
{[%clk 0:01:44.6]} 47... Bd4 {[%clk 0:01:17.6]} 48. Kf4 {[%clk 0:01:43.9]} 48...
Ke6 {[%clk 0:01:14.6]} 49. Kg5 {[%clk 0:01:38.8]} 49... Kf7 {[%clk 0:01:07.6]}
50. Nd8+ {[%clk 0:01:37.6]} 50... Ke7 {[%clk 0:01:04.8]} 51. Nc6+ {[%clk
0:01:37]} 51... Kd6 {[%clk 0:01:04.4]} 52. Nxa7 {[%clk 0:01:33.8]} 52... Be5
{[%clk 0:01:05.9]} 53. Kxg6 {[%clk 0:01:34]} 53... Bxg3 {[%clk 0:01:07]} 54.
Kxh5 {[%clk 0:01:34.9]} 54... Ke5 {[%clk 0:01:07.9]} 55. Nc6+ {[%clk 0:01:35]}
55... Ke4 {[%clk 0:01:08]} 56. a4 {[%clk 0:01:31.2]} 56... Bc7 {[%clk
0:01:02.6]} 57. a5 {[%clk 0:01:30]} 57... f4 {[%clk 0:01:04.1]} 58. Kg4 {[%clk
0:01:29.2]} 58... f3 {[%clk 0:01:05]} 59. a6 {[%clk 0:01:30.6]} 59... Bb6 {[%clk
0:01:02.7]} 60. Kg3 {[%clk 0:01:20]} 60... Ke3 {[%clk 0:01:03.8]} 61. Ne5 {[%clk
0:01:21]} 61... Bc7 {[%clk 0:01:02.5]} 62. a7 {[%clk 0:01:20.6]} 62... Bxe5+
{[%clk 0:01:04]} 63. Kg4 {[%clk 0:01:18.2]} 63... f2 {[%clk 0:01:05.4]} 64. a8=Q
{[%clk 0:01:18]} 64... f1=Q {[%clk 0:01:06.5]} 65. Qa3+ {[%clk 0:01:09.6]} 65...
Kd4 {[%clk 0:01:05.3]} 66. Qb2+ {[%clk 0:01:08.5]} 66... Ke4 {[%clk 0:01:00.5]}
67. Qc2+ {[%clk 0:01:09.1]} 67... Qd3 {[%clk 0:01:00.9]} 68. Qg2+ {[%clk
0:01:09.3]} 68... Ke3 {[%clk 0:00:57.7]} 69. Qg1+ {[%clk 0:00:53.8]} 69... Kd2
{[%clk 0:00:55.9]} 70. Qxc5 {[%clk 0:00:54.4]} 70... Qe4+ {[%clk 0:00:51.5]} 71.
Kg5 {[%clk 0:00:50.2]} 71... Qf4+ {[%clk 0:00:52.9]} 72. Kg6 {[%clk 0:00:40.1]}
72... Qf6+ {[%clk 0:00:53.7]} 73. Kh5 {[%clk 0:00:40.2]} 73... Qf5+ {[%clk
0:00:55.1]} 74. Kh6 {[%clk 0:00:39.7]} 74... Bf4+ {[%clk 0:00:56.7]} 75. Kg7
{[%clk 0:00:40.4]} 75... Qxc5 {[%clk 0:00:57.4]} 0-1

[Event "*** Titled Tuesday 3|2 Blitz (Early)"]
[Site "Chess.com"]
[Date "2016.12.06"]
[Round "6"]
[White "Mornar1951"]
[Black "Jungle_Jaguar"]
[Result "1/2-1/2"]
[WhiteElo "2585"]
[BlackElo "2408"]
[TimeControl "180+2"]
[EndTime "12:21:46 PST"]
[Termination "Game drawn by repetition"]

1. Nf3 {[%clk 0:03:02]} 1... Nf6 {[%clk 0:03:00.2]} 2. c4 {[%clk 0:03:03.1]}
2... e6 {[%clk 0:02:52.3]} 3. g3 {[%clk 0:03:04]} 3... d5 {[%clk 0:02:49.6]} 4.
Bg2 {[%clk 0:03:05.6]} 4... c5 {[%clk 0:02:49.7]} 5. O-O {[%clk 0:03:05.5]} 5...
Nc6 {[%clk 0:02:50.4]} 6. cxd5 {[%clk 0:03:05.8]} 6... exd5 {[%clk 0:02:51.3]}
7. d4 {[%clk 0:03:07.1]} 7... cxd4 {[%clk 0:02:44.1]} 8. Nxd4 {[%clk 0:03:07.4]}
8... Bc5 {[%clk 0:02:45.7]} 9. Nb3 {[%clk 0:03:02.2]} 9... Be7 {[%clk
0:02:44.3]} 10. Nc3 {[%clk 0:03:03.3]} 10... Be6 {[%clk 0:02:41.6]} 11. Bg5
{[%clk 0:02:56.1]} 11... O-O {[%clk 0:02:35.4]} 12. e3 {[%clk 0:02:56.6]} 12...
h6 {[%clk 0:02:31.4]} 13. Bxf6 {[%clk 0:02:57.6]} 13... Bxf6 {[%clk 0:02:33.3]}
14. Rc1 {[%clk 0:02:58.3]} 14... d4 {[%clk 0:01:47.8]} 15. exd4 {[%clk
0:02:48.2]} 15... Nxd4 {[%clk 0:01:47.6]} 16. Nc5 {[%clk 0:02:42.1]} 16... Rb8
{[%clk 0:01:25.7]} 17. Qa4 {[%clk 0:02:30.4]} 17... Qb6 {[%clk 0:01:16.9]} 18.
Nxe6 {[%clk 0:02:28.9]} 18... Nxe6 {[%clk 0:01:15.9]} 19. Nd5 {[%clk 0:02:13.7]}
19... Qxb2 {[%clk 0:01:14.8]} 20. Rb1 {[%clk 0:02:14.8]} 20... Qd4 {[%clk
0:01:05.4]} 21. Rb4 {[%clk 0:02:13.3]} 21... Qe5 {[%clk 0:00:58.1]} 22. Qxa7
{[%clk 0:02:08.5]} 22... Ra8 {[%clk 0:00:49.1]} 23. Qxb7 {[%clk 0:02:09.3]}
23... Rxa2 {[%clk 0:00:49.9]} 24. Re4 {[%clk 0:02:10.4]} 24... Qf5 {[%clk
0:00:42.6]} 25. Qb3 {[%clk 0:01:31.2]} 25... Rd2 {[%clk 0:00:18.7]} 26. Re3
{[%clk 0:01:22.9]} 26... Rd8 {[%clk 0:00:16.7]} 27. Be4 {[%clk 0:01:14.8]} 27...
Qg5 {[%clk 0:00:10.7]} 28. h4 {[%clk 0:01:15.7]} 28... Qg4 {[%clk 0:00:11]} 29.
Nxf6+ {[%clk 0:01:12.2]} 29... gxf6 {[%clk 0:00:12.9]} 30. Bg2 {[%clk
0:01:04.8]} 30... Rd1 {[%clk 0:00:13.2]} 31. Ree1 {[%clk 0:01:03.8]} 31... Rxe1
{[%clk 0:00:13]} 32. Rxe1 {[%clk 0:01:05.7]} 32... Qd4 {[%clk 0:00:12.5]} 33.
Qf3 {[%clk 0:01:04]} 33... Kg7 {[%clk 0:00:12.7]} 34. Re4 {[%clk 0:01:04.1]}
34... Qd1+ {[%clk 0:00:13]} 35. Kh2 {[%clk 0:01:02.9]} 35... Qxf3 {[%clk
0:00:13.2]} 36. Bxf3 {[%clk 0:01:04.8]} 36... f5 {[%clk 0:00:14.7]} 37. Ra4
{[%clk 0:01:01.2]} 37... Kf6 {[%clk 0:00:15.2]} 38. Kg2 {[%clk 0:00:59.9]} 38...
Rd6 {[%clk 0:00:15.8]} 39. Be2 {[%clk 0:00:58]} 39... Nd4 {[%clk 0:00:16.2]} 40.
Bh5 {[%clk 0:00:54]} 40... Nc6 {[%clk 0:00:16.3]} 41. Ra6 {[%clk 0:00:52.3]}
41... Ke6 {[%clk 0:00:15.2]} 42. Rb6 {[%clk 0:00:50.3]} 42... Ne5 {[%clk
0:00:15.7]} 43. Rb7 {[%clk 0:00:48]} 43... Rd7 {[%clk 0:00:15.2]} 44. Rb2 {[%clk
0:00:46.9]} 44... Rd6 {[%clk 0:00:15.9]} 45. Be2 {[%clk 0:00:47.6]} 45... Kf6
{[%clk 0:00:16.5]} 46. Ra2 {[%clk 0:00:48.2]} 46... Ng6 {[%clk 0:00:17.3]} 47.
Bc4 {[%clk 0:00:47.4]} 47... f4 {[%clk 0:00:16.7]} 48. Ra3 {[%clk 0:00:42.7]}
48... fxg3 {[%clk 0:00:17.2]} 49. Rf3+ {[%clk 0:00:43.5]} 49... Ke5 {[%clk
0:00:13.2]} 50. fxg3 {[%clk 0:00:43.1]} 50... f5 {[%clk 0:00:09.8]} 51. Bd3
{[%clk 0:00:34.4]} 51... Ne7 {[%clk 0:00:05.3]} 52. Kh3 {[%clk 0:00:30.5]} 52...
Rd4 {[%clk 0:00:06.1]} 53. Bc2 {[%clk 0:00:25.3]} 53... f4 {[%clk 0:00:06.5]}
54. g4 {[%clk 0:00:26.7]} 54... Nd5 {[%clk 0:00:06.7]} 55. g5 {[%clk 0:00:24]}
55... hxg5 {[%clk 0:00:07.4]} 56. hxg5 {[%clk 0:00:24.9]} 56... Rd2 {[%clk
0:00:08.5]} 57. Bd3 {[%clk 0:00:22.2]} 57... Ne3 {[%clk 0:00:07.4]} 58. Bf1
{[%clk 0:00:17.7]} 58... Rd1 {[%clk 0:00:05.2]} 59. Bg2 {[%clk 0:00:17.7]} 59...
Nxg2 {[%clk 0:00:04.3]} 60. Kxg2 {[%clk 0:00:19.6]} 60... Kf5 {[%clk 0:00:05.1]}
61. Ra3 {[%clk 0:00:19.9]} 61... Kxg5 {[%clk 0:00:05.3]} 62. Rb3 {[%clk
0:00:20.7]} 62... Kg4 {[%clk 0:00:06.5]} 63. Kf2 {[%clk 0:00:20.2]} 63... Rd2+
{[%clk 0:00:06.8]} 64. Kf1 {[%clk 0:00:21]} 64... f3 {[%clk 0:00:06.9]} 65. Rb8
{[%clk 0:00:21.9]} 65... Rd5 {[%clk 0:00:06.2]} 66. Rg8+ {[%clk 0:00:22.4]}
66... Rg5 {[%clk 0:00:07]} 67. Rxg5+ {[%clk 0:00:23.4]} 67... Kxg5 {[%clk
0:00:08.9]} 68. Kf2 {[%clk 0:00:25]} 68... Kf4 {[%clk 0:00:10.6]} 69. Kf1 {[%clk
0:00:26.1]} 69... Kg3 {[%clk 0:00:11.7]} 70. Kg1 {[%clk 0:00:27.4]} 70... Kf4
{[%clk 0:00:12.8]} 71. Kf2 {[%clk 0:00:28.5]} 71... Kg4 {[%clk 0:00:14.7]} 72.
Kf1 {[%clk 0:00:29.5]} 72... Kf5 {[%clk 0:00:16.1]} 73. Kf2 {[%clk 0:00:30.6]}
73... Ke4 {[%clk 0:00:17.5]} 74. Kf1 {[%clk 0:00:31.6]} 74... Kf4 {[%clk
0:00:17.9]} 75. Kf2 {[%clk 0:00:32.8]} 75... Kg4 {[%clk 0:00:18.8]} 76. Kf1
{[%clk 0:00:33.5]} 76... Kg3 {[%clk 0:00:20.3]} 77. Kg1 {[%clk 0:00:34.6]} 77...
Kf4 {[%clk 0:00:21.6]} 78. Kf2 {[%clk 0:00:35.4]} 78... Ke4 {[%clk 0:00:22.5]}
79. Kf1 {[%clk 0:00:36.4]} 79... Ke3 {[%clk 0:00:22.4]} 80. Ke1 {[%clk
0:00:37.1]} 80... Kf4 {[%clk 0:00:23.3]} 81. Kf2 {[%clk 0:00:34.2]} 1/2-1/2